bitfinex/quotes_BTCUSD_20240712
["timestamp","ask_amount","ask_price","bid_price","bid_amount"]
[1720785135404,0.6069762,57240.0,57239.0,0.13094753]
[1720785135846,0.6069762,57240.0,57239.0,0.1279071]
[1720785136089,0.6059762,57240.0,57239.0,0.1269071]
[1720785136296,0.6069762,57240.0,57239.0,0.1279071]
[1720785136513,0.9553822,57240.0,57239.0,0.1239071]
[1720785136718,0.6059762,57240.0,57239.0,0.1239071]
[1720785136937,0.6059762,57240.0,57239.0,0.1269071]
[1720785137389,0.6069762,57240.0,57239.0,0.0675]
[1720785137605,0.9563822,57240.0,57239.0,0.0675]
[1720785137849,0.89463113,57240.0,57239.0,0.0675]
[1720785138064,0.54522513,57240.0,57239.0,0.1675]
[1720785138298,0.54522513,57240.0,57239.0,0.17051014]
[1720785138528,0.54422513,57240.0,57239.0,0.16651014]
[1720785139606,0.56369517,57240.0,57239.0,0.16551014]
[1720785140057,0.56469517,57240.0,57239.0,0.16651014]
[1720785140265,0.97585224,57240.0,57239.0,0.16651014]
[1720785140480,0.91310117,57240.0,57239.0,0.1625]
[1720785140699,0.91410117,57240.0,57239.0,0.1665]
[1720785140910,0.91510117,57240.0,57239.0,0.1675]
[1720785141138,0.91410117,57240.0,57239.0,0.1635]
[1720785141397,0.91490418,57240.0,57239.0,0.1675]
[1720785141616,0.97665525,57240.0,57239.0,0.1675]
[1720785141836,0.91490418,57240.0,57239.0,0.17051664]
[1720785142246,0.91490418,57240.0,57239.0,0.1675]
[1720785142455,1.08119339,57240.0,57239.0,0.1675]
[1720785142666,0.97665525,57240.0,57239.0,0.1675]
[1720785143087,0.97657795,57240.0,57239.0,0.1675]
[1720785143541,1.01936502,57240.0,57239.0,0.1675]
[1720785143751,1.08111609,57240.0,57239.0,0.1675]
[1720785144195,0.97657795,57240.0,57239.0,0.1675]
[1720785144407,1.08111609,57240.0,57239.0,0.1675]
[1720785144840,1.08123531,57240.0,57239.0,0.1675]
[1720785145284,0.97644878,57240.0,57239.0,0.1675]
[1720785145921,0.91469771,57240.0,57239.0,0.1675]
[1720785147455,0.91469771,57240.0,57239.0,0.1665]
[1720785147456,0.97544878,57240.0,57239.0,0.1665]
[1720785147676,0.91280534,57240.0,57239.0,0.1625]
[1720785147930,0.91280534,57240.0,57239.0,0.1675]
[1720785147931,0.91480534,57240.0,57239.0,0.1675]
[1720785148357,1.01954042,57240.0,57239.0,0.1675]
[1720785148568,0.91493561,57240.0,57239.0,0.1675]
[1720785148993,1.01953942,57240.0,57239.0,0.1675]
[1720785149416,0.91493561,57240.0,57239.0,0.1675]
[1720785149635,1.01953858,57240.0,57239.0,0.1675]
[1720785150074,0.91493561,57240.0,57239.0,0.1675]
[1720785150285,0.91493561,57240.0,57239.0,0.168413]
[1720785150499,0.97751668,57240.0,57239.0,0.105913]
[1720785151355,1.1082727,57240.0,57239.0,0.105913]
[1720785151817,1.10812769,57240.0,57239.0,0.105913]
[1720785152249,1.10795103,57240.0,57239.0,0.105913]
[1720785152852,1.04619996,57240.0,57239.0,0.105913]
[1720785153263,0.9154454,57240.0,57239.0,0.105913]
[1720785153472,1.02005797,57240.0,57239.0,0.105913]
[1720785153670,0.9154454,57240.0,57239.0,0.105913]
[1720785154772,1.80676303,57240.0,57239.0,0.105913]
[1720785154985,1.67600847,57240.0,57239.0,0.105913]
[1720785155207,1.7361079,57240.0,57239.0,0.105913]
[1720785155432,2.26204902,57240.0,57239.0,0.105913]
[1720785155642,2.0855139,57240.0,57239.0,0.105913]
[1720785155848,2.0845139,57240.0,57239.0,0.104913]
[1720785156078,2.0245139,57240.0,57239.0,0.101913]
[1720785156262,2.20005056,57240.0,57239.0,0.101913]
[1720785156526,2.0315139,57240.0,57239.0,0.101913]
[1720785156962,2.20805876,57240.0,57239.0,0.101913]
[1720785157376,2.20805876,57240.0,57239.0,0.100913]
[1720785157578,2.0385139,57240.0,57239.0,0.100913]
[1720785158610,2.03937548,57240.0,57239.0,0.100913]
[1720785159921,2.02121189,57240.0,57239.0,0.100913]
[1720785160357,2.03945278,57240.0,57239.0,0.100913]
[1720785162096,2.03940236,57240.0,57239.0,0.100913]
[1720785165317,2.0184302,57240.0,57239.0,0.100913]
[1720785165524,2.03872277,57240.0,57239.0,0.100913]
[1720785166765,2.12052277,57240.0,57239.0,0.100913]
[1720785167809,1.77111677,57240.0,57239.0,0.100913]
[1720785168193,1.77115454,57240.0,57239.0,0.100913]
[1720785168824,1.77115469,57240.0,57239.0,0.100913]
[1720785169027,1.77138368,57240.0,57239.0,0.100913]
[1720785170762,1.94798369,57240.0,57239.0,0.100913]
[1720785172377,1.94823132,57240.0,57239.0,0.100913]
[1720785172752,1.77163841,57240.0,57239.0,0.100913]
[1720785173224,1.27868134,57240.0,57239.0,0.1251043]
[1720785173450,1.34043241,57240.0,57239.0,0.100913]
[1720785173857,1.27868134,57240.0,57239.0,0.100913]
[1720785174028,1.27868134,57240.0,57239.0,0.241913]
[1720785174252,1.27168134,57240.0,57239.0,0.241913]
[1720785174439,0.57286934,57240.0,57239.0,0.241913]
[1720785174643,0.57886934,57240.0,57239.0,0.241913]
[1720785174848,0.57886934,57240.0,57239.0,0.24495086]
[1720785175044,0.57886934,57240.0,57239.0,0.241913]
[1720785175248,0.57286934,57240.0,57239.0,0.241913]
[1720785175407,0.56486934,57240.0,57239.0,0.241913]
[1720785175630,0.56653704,57240.0,57239.0,0.24495086]
[1720785176027,0.57453564,57240.0,57239.0,0.24495086]
[1720785176647,0.57553564,57240.0,57239.0,0.24495086]
[1720785177369,0.57353564,57240.0,57239.0,0.24495086]
[1720785178340,0.57353564,57240.0,57239.0,0.241913]
[1720785178935,0.57352238,57240.0,57239.0,0.24495086]
[1720785180119,0.63527345,57240.0,57239.0,0.24495086]
[1720785180327,0.98467945,57240.0,57239.0,0.24495086]
[1720785180739,0.57352238,57240.0,57239.0,0.24495086]
[1720785181146,0.63527345,57240.0,57239.0,0.24495086]
[1720785181356,0.98467945,57240.0,57239.0,0.24495086]
[1720785181575,0.98404784,57240.0,57239.0,0.24495086]
[1720785181802,0.98404784,57240.0,57239.0,0.241913]
[1720785182010,0.98404784,57240.0,57239.0,0.24495086]
[1720785182218,0.63381184,57240.0,57239.0,0.241913]
[1720785182636,1.14033806,57240.0,57239.0,0.24495086]
[1720785182824,0.98321784,57240.0,57239.0,0.24495086]
[1720785183030,0.92146677,57240.0,57239.0,0.241913]
[1720785183452,1.07858699,57240.0,57239.0,0.241913]
[1720785184537,0.92229677,57240.0,57239.0,0.241913]
[1720785184961,1.05959349,57240.0,57239.0,0.241913]
[1720785185165,1.07931847,57240.0,57239.0,0.241913]
[1720785185377,0.72991247,57240.0,57239.0,0.241913]
[1720785185590,0.57277799,57240.0,57239.0,0.241913]
[1720785186226,0.92218399,57240.0,57239.0,0.241913]
[1720785187276,1.07931982,57240.0,57239.0,0.241913]
[1720785187897,1.05959696,57240.0,57239.0,0.241913]
[1720785188114,0.84183963,57240.0,57239.0,0.241913]
[1720785188323,0.66713663,57240.0,57239.0,0.241913]
[1720785188525,0.5100008,57240.0,57239.0,0.241913]
[1720785188730,0.8594068,57240.0,57239.0,0.241913]
[1720785190006,0.92115787,57240.0,57239.0,0.241913]
[1720785190863,0.8594068,57240.0,57239.0,0.241913]
[1720785191954,0.85934276,57240.0,57239.0,0.241913]
[1720785194416,1.01649425,57240.0,57239.0,0.241913]
[1720785194872,0.85934276,57240.0,57239.0,0.241913]
[1720785195203,0.83971707,57240.0,57239.0,0.241913]
[1720785195392,0.85927938,57240.0,57239.0,0.241913]
[1720785196223,1.07819023,57240.0,57239.0,0.241913]
[1720785196424,1.01643916,57240.0,57239.0,0.241913]
[1720785196746,1.07819023,57240.0,57239.0,0.241913]
[1720785197020,1.01643916,57240.0,57239.0,0.241913]
[1720785197983,1.01639178,57240.0,57239.0,0.241913]
[1720785198432,0.66698578,57240.0,57239.0,0.241913]
[1720785198664,0.51002392,57240.0,57239.0,0.241913]
[1720785199295,0.66713956,57240.0,57239.0,0.241913]
[1720785199477,0.17853373,57240.0,57239.0,0.2661043]
[1720785199690,0.02141809,57240.0,57239.0,0.5226103]
[1720785199895,0.08027561,57240.0,57239.0,0.87494388]
[1720785200098,0.00170524,57240.0,57239.0,0.87494388]
[1720785200516,0.00170524,57240.0,57239.0,1.22435588]
[1720785200919,0.00270524,57240.0,57239.0,1.23335588]
[1720785201146,0.00170524,57240.0,57239.0,1.22435588]
[1720785201481,0.00270524,57240.0,57239.0,0.88594388]
[1720785202058,0.00270524,57240.0,57239.0,1.23535588]
[1720785202490,0.00370524,57240.0,57239.0,1.23635588]
[1720785202694,0.00270524,57240.0,57239.0,1.22535588]
[1720785202906,0.00170524,57240.0,57239.0,1.22435588]
[1720785203119,0.00270524,57240.0,57239.0,1.23535588]
[1720785203349,0.00370524,57240.0,57239.0,1.23635588]
[1720785203758,0.00270524,57240.0,57239.0,1.23535588]
[1720785205034,0.00270524,57240.0,57239.0,1.43535588]
[1720785205909,0.00370524,57240.0,57239.0,1.43635588]
[1720785206331,0.00370524,57240.0,57239.0,1.78576788]
[1720785206751,0.00370524,57240.0,57239.0,1.43635588]
[1720785207426,0.00370524,57240.0,57239.0,1.78576788]
[1720785208196,0.00370524,57240.0,57239.0,1.58576788]
[1720785208611,0.00370524,57240.0,57239.0,1.78576788]
[1720785208823,0.00370524,57240.0,57239.0,1.58576788]
[1720785209230,0.00370524,57240.0,57239.0,1.78576788]
[1720785209447,0.00370524,57240.0,57239.0,1.88576788]
[1720785210696,0.00370524,57240.0,57239.0,1.88626788]
[1720785218110,0.00270524,57240.0,57239.0,1.88526788]
[1720785218336,0.00270524,57240.0,57239.0,1.89326788]
[1720785218337,0.00370524,57240.0,57239.0,1.89326788]
[1720785218584,0.01105269,57252.0,57248.0,0.174678]
[1720785218817,0.01105269,57252.0,57249.0,0.13956353]
[1720785219090,0.01105269,57252.0,57249.0,0.14247327]
[1720785219310,0.18272457,57254.0,57249.0,0.14247327]
[1720785219560,0.01450636,57253.0,57249.0,0.2522425]
[1720785219798,0.01450636,57252.0,57249.0,0.14247327]
[1720785220026,0.174665,57253.0,57249.0,0.14247327]
[1720785220027,0.01450636,57251.0,57249.0,0.14247327]
[1720785220255,0.174665,57253.0,57249.0,0.24640396]
[1720785220504,0.01450612,57252.0,57249.0,0.24640396]
[1720785220720,0.174665,57253.0,57249.0,0.24640396]
[1720785220721,0.01450612,57251.0,57249.0,0.24640396]
[1720785220954,0.01450612,57250.0,57249.0,0.24640396]
[1720785221219,0.174665,57253.0,57249.0,0.24640396]
[1720785221469,0.01450613,57252.0,57249.0,0.24640396]
[1720785221712,0.01450613,57251.0,57249.0,0.14247327]
[1720785221934,0.01450613,57250.0,57249.0,0.14247327]
[1720785222175,0.174665,57253.0,57249.0,0.13940974]
[1720785222408,0.01450622,57252.0,57250.0,0.00306353]
[1720785222645,0.174665,57253.0,57250.0,0.00306353]
[1720785222646,0.01450622,57251.0,57250.0,0.00306353]
[1720785223596,0.01450622,57251.0,57250.0,0.00406353]
[1720785224117,0.01450622,57251.0,57250.0,0.00306353]
[1720785224573,0.01450622,57251.0,57250.0,0.00606353]
[1720785225044,0.01450622,57251.0,57250.0,0.00806353]
[1720785225966,0.30535817,57253.0,57250.0,0.00606353]
[1720785226199,0.01450459,57252.0,57250.0,0.00906353]
[1720785226445,0.174665,57253.0,57250.0,0.00906353]
[1720785226686,0.11906023,57252.0,57250.0,0.00906353]
[1720785226913,0.30535947,57253.0,57250.0,0.006]
[1720785226914,0.11906023,57251.0,57250.0,0.006]
[1720785227146,0.11906023,57251.0,57250.0,0.00887553]
[1720785227376,0.11906023,57251.0,57250.0,0.00878313]
[1720785227628,0.11906023,57251.0,57250.0,0.00578313]
[1720785227905,0.11906023,57251.0,57250.0,0.00678313]
[1720785228146,0.00806357,57254.0,57253.0,0.174663]
[1720785228377,0.50611236,57261.0,57251.0,0.349338]
[1720785228378,0.10455557,57258.0,57256.0,0.0771]
[1720785228612,0.01450517,57257.0,57256.0,0.333553]
[1720785229079,0.01450517,57257.0,57256.0,0.743161]
[1720785229358,0.10455557,57260.0,57259.0,0.34929]
[1720785229359,0.10455814,57260.0,57259.0,0.34929]
[1720785229595,0.01450595,57260.0,57259.0,0.43109]
[1720785229846,0.00083,57262.0,57261.0,0.174638]
[1720785230568,0.01533647,57262.0,57261.0,0.174638]
[1720785230811,0.01533647,57262.0,57261.0,0.52580777]
[1720785231047,0.00083,57262.0,57261.0,0.64728327]
[1720785231319,0.00083,57262.0,57261.0,0.29800627]
[1720785231573,0.00083,57262.0,57261.0,0.17653077]
[1720785231809,0.00183,57262.0,57261.0,0.19053077]
[1720785232517,0.00183,57262.0,57261.0,0.20453077]
[1720785233265,0.00183,57262.0,57261.0,0.26593077]
[1720785233969,0.00183,57262.0,57261.0,0.37009125]
[1720785234250,0.00183,57262.0,57261.0,0.96448477]
[1720785234730,0.10448076,57270.0,57263.0,0.349263]
[1720785234962,0.01450589,57269.0,57267.0,0.174619]
[1720785235201,0.01450589,57268.0,57267.0,0.174619]
[1720785235436,0.10448076,57271.0,57267.0,0.25688253]
[1720785235437,0.00791573,57271.0,57267.0,0.25688253]
[1720785235676,0.01450614,57270.0,57268.0,0.17522698]
[1720785235908,0.174608,57271.0,57269.0,0.00306353]
[1720785236140,0.01450617,57270.0,57269.0,0.00306353]
[1720785236375,0.01450617,57270.0,57269.0,0.08148697]
[1720785236633,0.18253305,57272.0,57269.0,0.00306353]
[1720785237111,0.27903616,57274.0,57269.0,0.00306353]
[1720785237350,0.01450645,57273.0,57269.0,0.17967653]
[1720785237581,0.174601,57274.0,57269.0,0.17767653]
[1720785237582,0.01450645,57272.0,57269.0,0.17767653]
[1720785237841,0.19288445,57274.0,57269.0,0.17767653]
[1720785238075,0.01450654,57273.0,57269.0,0.00306353]
[1720785238315,0.19288445,57274.0,57269.0,0.00506353]
[1720785238780,0.01828345,57274.0,57269.0,0.17767653]
[1720785239019,0.01828345,57274.0,57272.0,0.174604]
[1720785239258,0.01828345,57274.0,57271.0,0.349214]
[1720785239259,0.01928345,57274.0,57271.0,0.349214]
[1720785239536,0.01928345,57274.0,57272.0,0.174603]
[1720785239791,0.02028345,57274.0,57272.0,0.174603]
[1720785240049,0.01928345,57274.0,57272.0,0.174603]
[1720785240295,0.02028345,57274.0,57273.0,0.1466]
[1720785240551,0.01928345,57274.0,57273.0,0.1466]
[1720785240807,0.01928345,57274.0,57273.0,0.321202]
[1720785240808,0.01828345,57274.0,57273.0,0.321202]
[1720785241057,0.01928345,57274.0,57273.0,0.1466]
[1720785241559,0.01828345,57274.0,57273.0,0.1466]
[1720785241803,0.01828345,57274.0,57273.0,0.1476]
[1720785242577,0.01828345,57274.0,57273.0,0.15046541]
[1720785245711,0.00802507,57275.0,57273.0,0.15046541]
[1720785246200,0.17459,57277.0,57273.0,0.15046541]
[1720785246455,0.00822,57277.0,57274.0,0.174599]
[1720785246928,0.174585,57279.0,57275.0,0.00285302]
[1720785247164,0.174085,57279.0,57276.0,0.0674257]
[1720785247396,0.06175107,57282.0,57277.0,0.00306353]
[1720785247645,0.06175107,57282.0,57277.0,0.00206353]
[1720785247646,0.174581,57280.0,57277.0,0.00206353]
[1720785247884,0.174581,57280.0,57278.0,0.02716144]
[1720785248130,0.349126,57286.0,57279.0,0.00206353]
[1720785248371,0.174572,57283.0,57280.0,0.1332]
[1720785248625,0.174572,57283.0,57280.0,0.13604836]
[1720785248877,0.93453807,57281.0,57280.0,0.00284836]
[1720785249119,1.28329307,57281.0,57280.0,0.00277144]
[1720785249357,1.28333907,57279.0,57278.0,0.006]
[1720785249611,1.28323907,57279.0,57278.0,0.006]
[1720785249860,1.28313907,57279.0,57278.0,0.006]
[1720785251060,0.174606,57272.0,57269.0,0.00206353]
[1720785251291,0.174606,57272.0,57270.0,0.07710369]
[1720785251521,0.174603,57273.0,57271.0,0.0631]
[1720785251754,0.174603,57273.0,57272.0,0.00206353]
[1720785252008,0.174603,57273.0,57272.0,0.0689523]
[1720785252280,0.174603,57273.0,57272.0,0.06966239]
[1720785252490,0.523807,57273.0,57272.0,0.00277362]
[1720785253112,0.523807,57273.0,57272.0,0.02977362]
[1720785255244,0.174603,57273.0,57272.0,0.02977362]
[1720785256433,0.349188,57276.0,57272.0,0.02977362]
[1720785256640,0.174602,57273.0,57272.0,0.02977362]
[1720785257316,0.29001826,57274.0,57272.0,0.02977362]
[1720785257535,0.35736261,57279.0,57273.0,0.08511435]
[1720785257753,0.349174,57278.0,57274.0,0.08146353]
[1720785257963,0.349174,57278.0,57275.0,0.01796245]
[1720785258213,0.523762,57278.0,57275.0,0.01796245]
[1720785258418,0.523762,57278.0,57276.0,0.00277152]
[1720785259123,0.523762,57278.0,57274.0,0.0794]
[1720785259124,0.174588,57278.0,57274.0,0.0864]
[1720785259350,0.00784594,57283.0,57278.0,0.0801]
[1720785259578,0.0145088,57282.0,57278.0,0.0801]
[1720785259786,0.18241794,57283.0,57278.0,0.0801]
[1720785259787,0.0145088,57281.0,57279.0,0.00276877]
[1720785259995,0.174572,57283.0,57280.0,0.02574598]
[1720785260234,0.01450897,57282.0,57280.0,0.02574598]
[1720785260473,0.01450897,57281.0,57280.0,0.02574598]
[1720785260687,0.01450897,57281.0,57278.0,0.0801]
[1720785260898,0.17857202,57283.0,57278.0,0.0801]
[1720785261110,0.01450903,57282.0,57278.0,0.0801]
[1720785261322,0.174572,57283.0,57278.0,0.0801]
[1720785261542,0.01450919,57282.0,57278.0,0.0801]
[1720785261753,0.174572,57283.0,57278.0,0.0811]
[1720785261920,0.01450915,57282.0,57278.0,0.0811]
[1720785262138,0.174572,57283.0,57278.0,0.11418494]
[1720785262358,0.01450919,57282.0,57278.0,0.11418494]
[1720785262636,0.174572,57283.0,57278.0,0.11418494]
[1720785262827,0.01450918,57282.0,57278.0,0.11418494]
[1720785263036,0.174572,57283.0,57278.0,0.11418494]
[1720785263233,0.01450921,57282.0,57278.0,0.11418494]
[1720785263446,0.174572,57283.0,57278.0,0.11418494]
[1720785263447,0.01450921,57281.0,57278.0,0.11418494]
[1720785263672,0.174572,57283.0,57278.0,0.0811]
[1720785263899,0.0145092,57282.0,57278.0,0.0811]
[1720785264101,0.06125107,57280.0,57278.0,0.0811]
[1720785264313,0.0145092,57279.0,57278.0,0.0811]
[1720785264532,0.0145092,57279.0,57278.0,0.0801]
[1720785264982,0.0145092,57279.0,57278.0,0.0821]
[1720785265423,0.0145092,57279.0,57278.0,0.0801]
[1720785265637,0.0145092,57279.0,57278.0,0.0811]
[1720785265858,0.0145092,57279.0,57278.0,0.0871]
[1720785266081,0.01451327,57279.0,57278.0,0.0861]
[1720785266296,0.01451327,57279.0,57278.0,0.0911]
[1720785266770,0.01451332,57279.0,57278.0,0.0911]
[1720785269372,0.01451701,57279.0,57278.0,0.0911]
[1720785269598,0.014517,57279.0,57278.0,0.0911]
[1720785270242,0.02295502,57279.0,57278.0,0.0911]
[1720785270701,0.01997996,57279.0,57278.0,0.0911]
[1720785271155,0.95415103,57279.0,57278.0,0.011]
[1720785271576,1.43397655,57279.0,57278.0,0.011]
[1720785272676,1.29177709,57279.0,57278.0,0.011]
[1720785274679,1.44874971,57279.0,57278.0,0.011]
[1720785276466,1.29177709,57279.0,57278.0,0.011]
[1720785276691,1.44893113,57279.0,57278.0,0.011]
[1720785277145,1.44893565,57279.0,57278.0,0.011]
[1720785277367,1.29177709,57279.0,57278.0,0.011]
[1720785278660,1.30629386,57279.0,57278.0,0.011]
[1720785279309,1.30629386,57279.0,57278.0,0.011913]
[1720785279776,1.30712335,57279.0,57278.0,0.011913]
[1720785283382,1.23135602,57279.0,57278.0,0.011913]
[1720785283594,0.94343909,57279.0,57278.0,0.011913]
[1720785284027,0.88218802,57279.0,57278.0,0.011913]
[1720785284461,0.94343909,57279.0,57278.0,0.011913]
[1720785285640,0.88218802,57279.0,57278.0,0.011913]
[1720785286612,0.88218802,57279.0,57278.0,0.111913]
[1720785290633,0.53302002,57279.0,57278.0,0.192513]
[1720785303481,0.59427109,57279.0,57278.0,0.192513]
[1720785305369,0.53302002,57279.0,57278.0,0.192513]
[1720785306791,0.59427109,57279.0,57278.0,0.192513]
[1720785307311,0.94343909,57279.0,57278.0,0.192513]
[1720785307584,1.24133899,57279.0,57278.0,0.111913]
[1720785307826,1.41354661,57279.0,57278.0,0.111913]
[1720785308305,1.30150709,57279.0,57278.0,0.105913]
[1720785308560,1.36150709,57279.0,57278.0,0.100913]
[1720785309047,1.30150709,57279.0,57278.0,0.103913]
[1720785309289,1.30150709,57279.0,57278.0,0.107913]
[1720785309775,1.30150709,57279.0,57278.0,0.103913]
[1720785311233,1.30150709,57279.0,57278.0,0.107913]
[1720785312522,1.37440709,57279.0,57278.0,0.107913]
[1720785313947,1.37440709,57279.0,57278.0,0.08149595]
[1720785313948,1.82895854,57279.0,57278.0,0.08149595]
[1720785314184,1.82895854,57279.0,57278.0,0.04790235]
[1720785314687,1.82895854,57279.0,57278.0,0.04090235]
[1720785315221,1.83295854,57279.0,57278.0,0.04090235]
[1720785315456,1.83195854,57279.0,57278.0,0.04090235]
[1720785315682,1.83295854,57279.0,57278.0,0.04090235]
[1720785316121,1.83195854,57279.0,57278.0,0.04090235]
[1720785316871,1.83195854,57279.0,57278.0,1e-08]
[1720785317597,2.38112654,57279.0,57278.0,1e-08]
[1720785317839,2.18112654,57279.0,57278.0,1e-08]
[1720785318070,2.38112654,57279.0,57278.0,1e-08]
[1720785318296,2.02352052,57279.0,57278.0,1e-08]
[1720785319001,2.17268852,57279.0,57278.0,1e-08]
[1720785319703,2.37268852,57279.0,57278.0,1e-08]
[1720785319986,2.17268852,57279.0,57278.0,1e-08]
[1720785320752,2.1809855,57279.0,57278.0,1e-08]
[1720785323516,2.0991855,57279.0,57278.0,1e-08]
[1720785323759,2.1809855,57279.0,57278.0,1e-08]
[1720785325980,2.1809855,57279.0,57278.0,0.06140001]
[1720785325981,1.25249843,57279.0,57278.0,0.06140001]
[1720785326207,1.25249843,57279.0,57278.0,0.14250001]
[1720785326486,1.39110177,57279.0,57278.0,0.14250001]
[1720785326715,1.29546605,57279.0,57278.0,0.14250001]
[1720785326979,1.29246605,57279.0,57278.0,0.14250001]
[1720785327191,1.29546605,57279.0,57278.0,0.14250001]
[1720785327412,1.23421498,57279.0,57278.0,0.14250001]
[1720785327633,1.38810105,57279.0,57278.0,0.14250001]
[1720785327870,0.88204698,57279.0,57278.0,0.14250001]
[1720785328106,0.88204698,57279.0,57278.0,0.14350001]
[1720785328107,0.00912698,57279.0,57278.0,0.14350001]
[1720785328328,0.00083,57279.0,57278.0,0.14626881]
[1720785328569,0.13157842,57279.0,57278.0,0.14626881]
[1720785328976,0.13157842,57279.0,57278.0,0.14350001]
[1720785329834,0.13155243,57279.0,57278.0,0.14250001]
[1720785330101,0.13155195,57279.0,57278.0,0.14350001]
[1720785330365,0.00083,57279.0,57278.0,0.14350001]
[1720785330569,0.00083,57279.0,57278.0,0.14250001]
[1720785330985,0.00083,57279.0,57278.0,0.14950001]
[1720785331192,0.175414,57279.0,57278.0,0.14950001]
[1720785331614,0.175414,57279.0,57278.0,0.15650001]
[1720785331811,0.175414,57279.0,57278.0,0.14950001]
[1720785332441,0.175414,57279.0,57278.0,0.15650001]
[1720785332661,0.00083,57279.0,57278.0,0.15650001]
[1720785332904,0.10538006,57279.0,57278.0,0.15926306]
[1720785333110,0.00083,57279.0,57278.0,0.15926306]
[1720785334227,0.10537779,57279.0,57278.0,0.15926306]
[1720785334430,0.00083,57279.0,57278.0,0.15926306]
[1720785334633,0.00083,57279.0,57278.0,0.1837185]
[1720785334872,0.07923672,57279.0,57278.0,0.1837185]
[1720785335074,0.07923672,57279.0,57278.0,0.2655185]
[1720785335075,0.00083,57279.0,57278.0,0.2655185]
[1720785335279,0.00083,57279.0,57278.0,0.26900986]
[1720785336362,0.00083,57279.0,57278.0,0.27107339]
[1720785336569,0.00083,57279.0,57278.0,0.26900986]
[1720785338025,0.00083,57279.0,57278.0,0.76831542]
[1720785338452,0.00083,57279.0,57278.0,0.97037895]
[1720785338676,0.00083,57279.0,57278.0,0.77037895]
[1720785338880,0.00083,57279.0,57278.0,1.31955295]
[1720785339097,0.00083,57279.0,57278.0,1.31748942]
[1720785339339,0.00083,57279.0,57278.0,1.38830821]
[1720785339547,0.00083,57279.0,57278.0,1.18830821]
[1720785339763,0.00083,57279.0,57278.0,1.17430821]
[1720785339999,0.00083,57279.0,57278.0,1.18130821]
[1720785340244,0.00083,57279.0,57278.0,1.18830821]
[1720785340480,0.00083,57279.0,57278.0,1.18130821]
[1720785340904,0.00083,57279.0,57278.0,1.19530821]
[1720785342066,0.00083,57279.0,57278.0,1.18830821]
[1720785342251,0.00083,57279.0,57278.0,1.20130821]
[1720785343425,0.00083,57279.0,57278.0,1.20222121]
[1720785346599,0.00083,57279.0,57278.0,1.30222121]
[1720785347653,0.00083,57279.0,57278.0,1.3022212]
[1720785350631,0.00083,57279.0,57278.0,1.8513952]
[1720785351694,0.00083,57279.0,57278.0,1.8613952]
[1720785351907,0.00083,57279.0,57278.0,1.9613952]
[1720785352360,0.00083,57279.0,57278.0,2.4948692]
[1720785352571,0.001,57297.0,57295.0,0.1389]
[1720785352786,0.00828,57298.0,57295.0,0.22419035]
[1720785352991,0.00828,57298.0,57296.0,0.00273749]
[1720785355320,0.00828,57298.0,57296.0,0.00673749]
[1720785355529,0.00828,57298.0,57296.0,0.04619255]
[1720785355779,0.25275944,57303.0,57297.0,0.06929026]
[1720785355780,0.04264584,57303.0,57297.0,0.06929026]
[1720785356025,0.182778,57304.0,57298.0,0.00306353]
[1720785356264,0.182778,57304.0,57300.0,0.0618]
[1720785356265,0.00827,57304.0,57300.0,0.0618]
[1720785356491,0.01676433,57304.0,57301.0,0.00655351]
[1720785356723,0.00827,57304.0,57301.0,0.009291]
[1720785356941,0.06125107,57303.0,57301.0,0.009291]
[1720785357146,0.00827,57304.0,57301.0,0.009291]
[1720785357147,0.00827,57304.0,57301.0,0.00273749]
[1720785357356,0.00827,57304.0,57300.0,0.06529002]
[1720785357572,0.00827,57304.0,57302.0,0.00296562]
[1720785357782,0.00827,57304.0,57303.0,0.0087292]
[1720785357992,0.00827,57304.0,57303.0,0.01169482]
[1720785358195,0.00827,57304.0,57303.0,0.0087292]
[1720785358406,0.06952107,57304.0,57303.0,0.0087292]
[1720785358624,1.02385807,57304.0,57303.0,0.0087292]
[1720785359253,1.02385807,57304.0,57303.0,0.0157292]
[1720785359459,1.02385807,57304.0,57303.0,0.0087292]
[1720785360548,1.02385807,57304.0,57296.0,0.062]
[1720785360549,0.06125107,57299.0,57296.0,0.062]
[1720785360783,0.23577407,57299.0,57296.0,0.062]
[1720785360992,0.23577407,57299.0,57297.0,0.00296562]
[1720785361415,0.23577407,57299.0,57296.0,0.062]
[1720785361848,0.23577407,57299.0,57297.0,0.00296562]
[1720785362047,0.06125107,57303.0,57297.0,0.00296562]
[1720785362255,0.174514,57302.0,57298.0,0.1434]
[1720785362460,0.174514,57302.0,57298.0,0.16014]
[1720785362663,0.174514,57302.0,57299.0,0.00295578]
[1720785363923,0.357286,57304.0,57299.0,0.00295578]
[1720785364143,0.00827,57304.0,57298.0,0.16363014]
[1720785364354,0.18278,57304.0,57299.0,0.00306353]
[1720785364615,0.18278,57304.0,57299.0,0.02478232]
[1720785364789,0.18278,57304.0,57299.0,0.03278232]
[1720785365199,0.18278,57304.0,57299.0,0.02478232]
[1720785365621,0.06125107,57303.0,57299.0,0.02478232]
[1720785365864,0.58481107,57300.0,57299.0,0.00295578]
[1720785366069,0.58481107,57300.0,57299.0,0.00795578]
[1720785366282,0.58481107,57300.0,57299.0,0.005]
[1720785366283,0.93385107,57300.0,57299.0,0.005]
[1720785367814,1.36469107,57300.0,57299.0,0.011]
[1720785368022,1.39259107,57300.0,57299.0,0.011]
[1720785368232,1.39259107,57300.0,57299.0,0.006]
[1720785368439,0.23579907,57291.0,57288.0,0.1457]
[1720785368644,0.23579907,57291.0,57288.0,0.16027]
[1720785368860,0.174548,57291.0,57289.0,0.00272463]
[1720785369074,0.174543,57293.0,57290.0,0.064]
[1720785369306,0.174543,57293.0,57291.0,0.08102596]
[1720785369515,0.174541,57293.0,57291.0,0.08102596]
[1720785369743,0.19282745,57292.0,57291.0,0.0783]
[1720785370163,0.01828345,57292.0,57291.0,0.08102596]
[1720785370371,0.01828345,57292.0,57291.0,0.18102596]
[1720785370601,0.01828345,57292.0,57291.0,0.19698556]
[1720785370817,0.01828345,57292.0,57291.0,0.26058556]
[1720785371275,0.174539,57294.0,57292.0,0.0636]
[1720785371494,0.349068,57296.0,57293.0,0.00272561]
[1720785371705,0.174536,57295.0,57292.0,0.0636]
[1720785371931,0.174536,57295.0,57293.0,0.00272561]
[1720785372145,0.174536,57295.0,57292.0,0.0636]
[1720785372400,0.00859518,57297.0,57294.0,0.00295275]
[1720785372618,0.349024,57303.0,57296.0,0.1459]
[1720785372826,0.174521,57300.0,57297.0,0.00306353]